bitfinex-derivatives/quotes_ETHF0:USTF0_20251012
["timestamp","ask_amount","ask_price","bid_price","bid_amount"]
[1760235189989,0.5084,3710.5,3710.4,0.48468]
[1760235190198,0.5084,3710.5,3709.9,0.0338]
[1760235190400,0.5084,3711.0,3710.7,0.48463]
[1760235190586,0.37,3710.9,3710.7,0.48463]
[1760235190894,0.1384,3711.5,3711.3,0.48456]
[1760235191198,0.00285199,3711.9,3711.4,0.48454]
[1760235191400,0.37,3711.8,3711.7,0.4845]
[1760235191695,0.37,3711.8,3711.7,0.48661287]
[1760235191900,0.00285199,3711.9,3711.7,0.48661287]
[1760235192098,0.00285199,3711.9,3711.7,0.52041287]
[1760235192298,0.00285199,3711.9,3711.8,0.0338]
[1760235193298,0.37,3711.8,3711.7,0.00211287]
[1760235193600,0.00285199,3711.9,3711.8,0.5183]
[1760235195298,0.37285199,3711.9,3711.8,0.4845]
[1760235195595,0.00285199,3711.9,3711.8,0.4845]
[1760235195899,0.00285199,3711.9,3711.8,0.5183]
[1760235196394,0.37285199,3711.9,3711.8,0.4845]
[1760235196599,0.37,3711.8,3711.7,0.00211287]
[1760235196798,0.37,3711.8,3711.7,0.48661287]
[1760235197106,0.00285199,3711.9,3711.8,0.0338]
[1760235197489,0.00285199,3711.9,3711.8,5.0338]
[1760235197694,0.3425,3712.0,3711.9,0.51828]
[1760235198192,0.7125,3712.0,3711.9,0.48448]
[1760235198398,0.3425,3712.0,3711.9,0.51828]
[1760235198592,0.34512798,3712.0,3711.9,0.51828]
[1760235201301,0.37,3712.5,3711.9,0.51828]
[1760235201302,0.37,3712.9,3712.8,0.48437]
[1760235202404,0.37294859,3712.9,3712.8,0.48437]
[1760235203400,48.6598507,3717.2,3713.6,0.0308]
[1760235203401,0.95821965,3714.6,3713.6,0.0308]
[1760235203593,0.1384,3716.0,3713.0,0.0308]
[1760235203594,0.1384,3715.0,3714.8,0.48411]
[1760235203795,0.37,3714.9,3714.8,0.48411]
[1760235204094,0.1384,3716.0,3714.0,1.21051]
[1760235204095,0.1384,3716.0,3715.9,0.48396]
[1760235204297,0.14138771,3716.0,3715.9,0.48693317]
[1760235204492,0.1384,3716.5,3716.4,0.4839]
[1760235205099,0.1384,3716.0,3715.9,0.00297317]
[1760235205610,0.14189396,3716.0,3715.9,0.00297317]
[1760235205903,5.51189396,3716.0,3715.9,0.00297317]
[1760235206309,5.51189396,3716.0,3713.3,2.39378412]
[1760235206310,0.1384,3715.0,3713.3,2.39378412]
[1760235206505,0.5084,3714.5,3714.4,0.48415]
[1760235207214,0.5084,3714.5,3714.4,0.48662763]
[1760235209101,0.5084,3714.5,3714.4,0.00247763]
[1760235209301,5.1384,3714.5,3712.0,2.11727376]
[1760235209502,0.5084,3713.5,3713.4,0.48429]
[1760235210207,0.1384,3713.5,3713.4,0.48761741]
[1760235212107,0.5084,3713.5,3713.4,0.48761741]
[1760235214797,0.5084,3713.5,3713.4,0.00332741]
[1760235215004,5.5084,3713.5,3713.4,0.00332741]
[1760235215199,0.3683,3712.9,3712.7,0.48438]
[1760235215508,0.3683,3712.9,3710.5,9.891]
[1760235215706,0.1456,3712.5,3712.2,0.48444]
[1760235215909,0.5139,3712.5,3712.4,0.48442]
[1760235216303,0.51735755,3712.5,3712.4,0.48740934]
[1760235217409,0.1456,3713.0,3712.9,0.48435]
[1760235218210,0.14769489,3713.0,3712.9,0.48435]
[1760235219301,0.51599489,3713.0,3712.9,0.48435]
[1760235220008,0.00209489,3713.0,3712.9,0.48435]
[1760235221210,0.35109489,3713.0,3712.9,0.48435]
[1760235221413,0.48829489,3713.0,3712.9,0.48435]
[1760235221611,0.00209489,3713.0,3712.9,0.48435]
[1760235222614,0.00209489,3713.0,3712.4,0.00298934]
[1760235222816,0.4862,3712.5,3712.4,0.48740934]
[1760235223006,0.4862,3712.5,3712.4,0.00298934]
[1760235224318,0.00209489,3713.0,3712.8,0.48437]
[1760235225512,0.349,3712.9,3712.8,0.48437]
[1760235226113,0.349,3712.9,3712.4,0.00298934]
[1760235226309,0.13929489,3713.0,3712.4,0.48740934]
[1760235226310,0.4862,3712.5,3712.4,0.48740934]
[1760235227122,0.4862,3712.5,3712.4,0.00298934]
[1760235228719,5.4862,3712.5,3712.4,0.00298934]
[1760235228917,0.48443,3712.4,3710.9,1.21154]
[1760235229120,0.349,3712.4,3710.5,9.891]
[1760235229320,0.1372,3712.5,3710.5,9.891]
[1760235229925,0.349,3711.9,3711.8,0.48449]
[1760235231124,0.1372,3712.0,3711.8,0.48449]
[1760235231713,0.349,3712.4,3712.3,0.48443]
[1760235232421,0.349,3712.4,3712.1,0.48445]
[1760235232619,0.1372,3712.5,3712.1,0.48445]
[1760235232816,0.1372,3712.5,3712.2,0.48444]
[1760235233027,0.349,3712.4,3712.3,0.48443]
[1760235233818,0.1372,3712.0,3710.5,9.89373061]
[1760235234025,0.1372,3712.0,3710.9,1.21153]
[1760235234214,0.349,3711.9,3711.7,0.48451]
[1760235234625,0.1372,3712.0,3710.5,9.89373061]
[1760235234626,0.62168,3712.0,3711.6,0.48452]
[1760235234824,0.349,3711.9,3711.7,0.4845]
[1760235235021,0.349,3711.9,3710.8,1.21157]
[1760235235220,0.349,3711.9,3711.8,0.48449]
[1760235235421,0.1372,3712.0,3711.8,0.48449]
[1760235236128,0.4862,3712.0,3711.8,0.48449]
[1760235236331,0.4862,3712.5,3712.4,0.48442]
[1760235239933,0.4862,3712.5,3711.6,1.92061342]
[1760235239934,0.349,3712.4,3712.3,0.48443]
[1760235241625,0.349,3712.4,3711.7,1.21128]
[1760235241626,0.00209489,3713.0,3712.8,0.48436]
[1760235241928,0.1372,3714.0,3713.8,0.48424]
[1760235242128,0.349,3714.4,3714.3,0.48417]
[1760235242731,0.00207335,3714.4,3714.3,0.48678992]
[1760235245935,0.36527335,3714.4,3714.3,0.48678992]
[1760235246526,5.36527335,3714.4,3714.3,0.00261992]
[1760235247921,0.3632,3715.4,3715.0,0.48407]
[1760235248127,1.58420123,3716.5,3714.3,0.00261992]
[1760235248128,0.1372,3716.0,3715.6,0.484]
[1760235248326,0.1372,3716.0,3715.8,0.48396]
[1760235248624,0.3632,3715.9,3715.8,0.48396]
[1760235249222,0.00346478,3715.9,3715.8,0.48396]
[1760235249826,4.78e-06,3715.9,3715.8,5.48396]
[1760235250025,0.1453,3716.5,3716.4,0.4839]
[1760235250223,0.5085,3716.5,3716.4,0.4839]
[1760235250927,0.5108773,3716.5,3716.4,0.4839]
[1760235251127,0.5108773,3716.5,3714.6,1.92061342]
[1760235251128,5.6315673,3716.5,3714.6,1.92061342]
[1760235251332,0.1453,3716.0,3714.7,1.21029]
[1760235251531,0.1453,3716.0,3715.5,0.48401]
[1760235251837,0.3632,3715.9,3715.5,0.48401]
[1760235252137,0.3632,3715.4,3714.8,0.4841]
[1760235252330,0.1453,3715.0,3714.8,0.4841]
[1760235252530,0.3632,3714.9,3714.8,0.4841]
[1760235255632,0.3632,3714.9,3713.4,1.21072]
[1760235255838,0.1453,3715.0,3714.6,0.48413]
[1760235256137,0.3632,3714.9,3714.8,0.48411]
[1760235258738,0.3632,3714.9,3713.2,9.891]
[1760235258739,0.3632,3714.4,3713.2,9.891]
[1760235259038,0.3632,3714.4,3713.3,1.21075]
[1760235259246,0.3632,3714.4,3712.7,1.21095]
[1760235259539,0.3632,3714.4,3713.8,0.48423]
[1760235260932,0.3632,3714.4,3713.9,0.48422]
[1760235260933,5.3632,3714.4,3713.9,0.48422]
[1760235262045,0.3632,3714.4,3714.2,0.48418]
[1760235262236,0.3632,3714.4,3713.1,1.21082]
[1760235262237,5.3632,3714.4,3713.9,0.48421]
[1760235262535,0.1453,3713.5,3713.3,0.4843]
[1760235262737,0.3632,3713.2,3713.0,0.48433]
[1760235263136,0.5085,3713.5,3713.4,0.48429]
[1760235263345,0.5104292,3713.5,3713.4,0.48659037]
[1760235263537,0.1472292,3713.5,3713.4,0.48659037]
[1760235264147,0.0019292,3713.5,3713.4,0.48659037]
[1760235265039,0.5104292,3713.5,3713.4,0.48659037]
[1760235266041,0.0019292,3713.5,3713.4,0.48659037]
[1760235268844,0.3651292,3713.5,3713.4,0.48659037]
[1760235269444,0.0019292,3713.5,3713.4,0.48659037]
[1760235270545,0.3651292,3713.5,3713.4,0.48659037]
[1760235270941,0.0019292,3713.5,3713.4,0.48659037]
[1760235271537,0.5104292,3713.5,3713.4,0.48659037]
[1760235276758,0.5104292,3713.5,3713.4,0.00230037]
[1760235277264,0.0019292,3713.5,3713.4,0.00230037]
[1760235277862,0.5160292,3713.5,3713.4,0.00230037]
[1760235278361,0.0019292,3713.5,3713.4,5.00230037]
[1760235278563,0.1453,3714.0,3713.5,1.2107]
[1760235278758,0.1453,3714.0,3713.9,0.48422]
[1760235278963,0.5156,3714.0,3713.9,0.48422]
[1760235279165,0.3703,3714.4,3714.3,0.48417]
[1760235279470,0.37289288,3714.4,3714.3,0.48417]
[1760235279858,0.00259288,3714.4,3714.3,0.48417]
[1760235280054,0.1453,3715.0,3714.3,0.48417]
[1760235280055,0.1453,3715.0,3714.9,0.48409]
[1760235280260,0.5156,3715.0,3714.9,0.48409]
[1760235280462,0.5141,3715.5,3715.4,0.48403]
[1760235280656,0.1438,3715.5,3715.4,0.48403]
[1760235280966,0.3703,3715.9,3715.8,0.48398]
[1760235281364,0.00267864,3715.9,3715.8,0.48398]
[1760235281564,0.00267864,3715.9,3715.8,5.48398]
[1760235282365,0.00267864,3715.9,3715.8,2.40788733]
[1760235282763,0.1449,3716.0,3715.5,1.92390733]
[1760235282957,0.1449,3716.0,3715.8,0.48397]
[1760235283361,0.1438,3717.0,3714.9,1.21021]
[1760235283362,0.3706,3716.8,3715.4,1.92390733]
[1760235283559,0.3706,3716.8,3716.7,0.48386]
[1760235283761,0.37375358,3716.8,3716.7,0.48617797]
[1760235287459,0.37375358,3716.8,3716.7,0.00231797]
[1760235287662,5.85760358,3716.8,3716.7,0.00231797]
[1760235287868,5.37375358,3716.8,3716.7,0.00231797]
[1760235290767,0.48386,3716.7,3716.3,0.48391]
[1760235290968,0.3706,3716.4,3716.3,0.48391]
[1760235291266,0.48393,3716.2,3714.8,1.21026]
[1760235291463,0.8545,3716.4,3716.0,0.48394]
[1760235291765,0.3706,3716.2,3716.0,0.48622385]
[1760235291967,0.85452,3716.3,3716.0,0.48622385]
[1760235292168,0.85454,3716.2,3716.0,0.00228385]
[1760235292768,0.1449,3715.5,3715.2,0.48405]
[1760235292973,0.3706,3715.4,3715.2,0.48405]
[1760235293174,0.3706,3715.4,3714.3,1.21043]
[1760235293365,0.48404,3715.4,3715.0,0.48407]
[1760235293567,0.48404,3715.4,3715.1,0.48406]
[1760235293873,0.3706,3715.2,3715.1,0.48601112]
[1760235294574,0.3706,3715.2,3715.1,0.00195112]
[1760235294768,5.85465,3715.2,3715.1,0.00195112]
[1760235296063,5.85465,3715.2,3713.6,0.48426]
[1760235296064,0.3706,3714.4,3713.6,0.48426]
[1760235296270,0.3706,3714.4,3713.0,0.21194247]
[1760235296468,0.1449,3714.5,3713.9,0.48422]
[1760235296674,0.1449,3714.5,3714.0,0.4842]
[1760235296675,0.3706,3714.4,3714.0,0.4842]
[1760235296974,0.1449,3714.5,3714.3,0.48416]
[1760235297178,0.1449,3715.0,3714.5,0.48414]
[1760235297375,0.1449,3715.0,3714.6,0.48413]
[1760235297567,0.1449,3715.0,3714.0,0.00294562]
[1760235297568,0.3706,3714.9,3714.7,0.48411]
[1760235297872,0.3706,3714.9,3714.8,0.4841]
[1760235298775,0.3706,3714.9,3714.0,0.00294562]
[1760235299277,0.62899,3715.0,3714.6,0.48413]
[1760235299473,0.1449,3715.0,3714.0,0.00294562]
[1760235299778,0.5155,3714.5,3714.4,0.48416]
[1760235300576,0.3706,3714.9,3714.8,0.48411]
[1760235301075,0.3706,3714.4,3714.0,0.00294562]
[1760235301269,0.3706,3714.4,3714.3,0.48417]
[1760235301978,0.3706,3714.4,3714.0,0.00294562]
[1760235302174,0.5155,3715.5,3715.3,0.48403]
[1760235302380,0.3706,3715.9,3715.2,0.48404]
[1760235302672,0.1449,3716.5,3715.6,0.484]
[1760235302866,0.48392,3716.3,3714.6,1.21032]
[1760235303181,0.1449,3716.5,3714.4,1.2104]
[1760235303182,0.1449,3715.5,3714.4,1.2104]
[1760235303378,0.3706,3715.4,3714.4,1.2104]
[1760235303771,0.3706,3715.4,3715.0,0.48407]
[1760235303972,0.1449,3715.5,3715.0,0.48407]
[1760235304173,0.1449,3715.5,3714.1,1.2105]
[1760235304472,0.3706,3715.4,3715.3,0.48403]
[1760235306376,0.62886,3716.0,3714.0,2.42401562]
[1760235306377,0.1449,3716.5,3716.2,0.48392]
[1760235306581,0.00315358,3716.8,3716.6,0.48387]
[1760235306582,0.3586,3716.7,3716.6,0.48387]
[1760235307680,0.3586,3716.7,3715.7,1.92390733]
[1760235307879,0.3586,3716.4,3716.2,0.48391]
[1760235308184,0.3586,3716.4,3716.3,0.4839]
[1760235308483,0.3586,3716.4,3715.2,1.21013]
[1760235308484,0.1439,3716.0,3715.9,0.48396]
[1760235308683,0.1439,3716.0,3715.0,1.2102]
[1760235308684,0.3586,3715.9,3715.0,1.21021]
[1760235308883,0.3586,3715.9,3715.8,0.48397]
[1760235312784,0.3586,3716.4,3716.3,0.48391]
[1760235312985,0.1439,3716.5,3716.3,0.48391]
[1760235313373,0.36175358,3716.8,3716.7,0.48386]
[1760235313579,0.36175358,3716.8,3716.7,0.48716267]
[1760235313780,0.00315358,3716.8,3716.7,0.48716267]
[1760235314480,0.3586,3717.7,3716.7,5.00330267]
[1760235314682,0.3586,3717.7,3716.9,1.20959]
[1760235314887,0.3586,3717.7,3717.6,0.48374]
[1760235315087,0.022,3717.8,3717.6,0.48374]
[1760235315582,0.02520039,3717.8,3717.6,0.48374]
[1760235317187,0.3586,3717.7,3717.6,0.48374]
[1760235317991,5.3586,3717.7,3717.6,0.48374]
[1760235318487,0.3586,3717.7,3717.6,0.48374]
[1760235320291,0.02520039,3717.8,3717.6,0.48374]
[1760235320892,0.3586,3717.7,3717.6,0.48374]
[1760235321786,0.1439,3717.0,3716.7,0.00330267]
[1760235322089,0.1439,3717.0,3716.8,0.48384]
[1760235322291,0.3586,3717.4,3717.2,0.48379]
[1760235322588,0.02520039,3717.8,3717.7,0.48373]
[1760235323186,0.38380039,3717.8,3717.7,0.48373]
[1760235323790,0.3586,3717.7,3717.6,0.48374]
[1760235323998,0.3586,3717.4,3717.2,0.48379]
[1760235324295,0.1439,3717.5,3717.3,0.48377]
[1760235324505,0.3586,3717.4,3717.3,0.48377]
[1760235324884,0.5025,3717.5,3717.3,0.48377]
[1760235325089,0.3586,3717.4,3717.3,0.48377]
[1760235325284,0.3586,3717.3,3717.0,0.48381]
[1760235325494,0.3586,3717.2,3717.0,0.48381]
[1760235325793,0.3586,3716.9,3716.7,0.00330267]
[1760235325996,0.62772,3717.0,3716.7,0.48715267]
[1760235326294,0.3586,3716.8,3716.7,0.00330267]
[1760235327893,0.3586,3716.9,3716.8,0.48385]
[1760235328193,5.3586,3716.9,3716.7,0.00330267]
[1760235328493,0.3586,3716.9,3716.7,0.00330267]
[1760235329098,0.1439,3717.0,3716.7,0.00330267]
[1760235329299,0.3586,3716.9,3716.7,0.00330267]
[1760235329994,0.3586,3716.9,3716.8,0.48384]
[1760235330388,0.3586,3716.9,3716.7,0.00330267]
[1760235330789,5.3586,3716.8,3716.7,0.00330267]
[1760235332996,0.48396,3716.0,3715.5,0.48401]
[1760235333194,0.3586,3715.9,3715.6,0.48399]
[1760235333396,0.1439,3716.0,3714.4,1.92390733]
[1760235333698,0.3586,3715.7,3714.5,1.21036]
[1760235333895,0.1439,3715.0,3714.5,0.00307313]
[1760235334098,0.3586,3714.9,3714.7,0.48411]
[1760235334298,0.505684,3715.0,3714.9,0.48409]
[1760235337700,0.3696,3714.8,3714.6,0.48413]
[1760235337903,0.3696,3714.7,3714.6,0.48413]
[1760235338709,0.3696,3714.7,3714.5,0.00307313]
[1760235338710,0.3696,3714.9,3714.5,0.48720313]
[1760235339003,0.48413,3714.6,3714.5,0.00307313]
[1760235339200,0.85373,3714.6,3714.5,0.00307313]
[1760235339395,0.3696,3714.6,3714.5,0.00307313]
[1760235340900,0.3696,3714.6,3712.8,1.21091]
[1760235340901,5.3696,3714.6,3712.8,1.21091]
[1760235341106,0.147084,3715.0,3712.8,1.21091]
[1760235341107,0.48417,3714.3,3713.9,0.48421]
[1760235341308,0.514,3714.0,3713.9,0.48421]
[1760235342005,0.514,3714.0,3713.9,0.48746899]
[1760235343401,0.3684,3715.9,3715.8,0.48398]
[1760235344505,0.00319886,3715.9,3715.8,0.48398]
[1760235345003,0.37159886,3715.9,3715.8,0.48398]
[1760235345402,0.3684,3716.4,3716.3,0.48391]
[1760235345604,0.1456,3716.5,3716.3,0.48391]
[1760235345806,0.3684,3716.4,3716.3,0.48391]
[1760235346217,0.1456,3716.5,3716.3,0.48391]
[1760235346420,0.14778285,3716.5,3716.3,0.48391]
[1760235346731,0.00218285,3716.5,3716.3,5.48391]
[1760235347617,0.37058285,3716.5,3716.3,5.48391]
[1760235348310,0.3684,3716.4,3716.3,0.48391]
[1760235348516,0.3684,3716.4,3716.2,0.48392]
[1760235348716,0.3684,3716.4,3716.3,0.4839]
[1760235349922,5.0,3716.4,3714.8,1.92390733]
[1760235350115,0.3684,3716.4,3716.1,0.48393]
[1760235350320,0.14778285,3716.5,3716.2,0.48391]
[1760235350612,0.3684,3716.4,3714.5,1.92390733]
[1760235350816,0.14778285,3716.5,3716.1,0.48393]
[1760235351013,0.14778285,3716.5,3715.3,1.2101]
[1760235351214,0.3684,3716.4,3716.3,0.4839]
[1760235356421,0.14778285,3716.5,3716.3,0.4839]
[1760235356928,0.3684,3716.4,3716.3,0.4839]
[1760235360525,0.022,3717.8,3716.9,1.20958]
[1760235360734,0.3904,3717.8,3717.7,0.48373]
[1760235361725,0.39311555,3717.8,3717.7,0.48636646]
[1760235362631,5.39311555,3717.8,3717.7,0.00263646]
[1760235362827,0.3684,3717.4,3716.5,1.20971]
[1760235363028,0.1456,3717.5,3716.5,1.20971]
[1760235363235,0.3684,3717.4,3716.5,1.20971]
[1760235363435,0.62936,3717.5,3717.1,0.4838]
[1760235363634,0.3684,3716.9,3716.8,0.48384]
[1760235363933,0.3684,3716.9,3716.8,0.48615965]
[1760235366736,0.3684,3716.9,3716.8,0.00231965]
[1760235367330,5.3684,3716.9,3716.8,0.00231965]
[1760235368643,0.3684,3716.9,3716.8,0.00231965]
[1760235369437,0.3707,3717.3,3717.2,0.48379]
[1760235369825,0.39541555,3717.8,3717.7,0.48373]
[1760235370034,0.02471555,3717.8,3717.7,0.48373]
[1760235370540,0.39541555,3717.8,3717.7,0.48373]
[1760235370740,0.02471555,3717.8,3717.7,0.48373]
[1760235373936,0.3707,3718.7,3718.4,0.48364]
[1760235375042,0.14761196,3718.5,3718.4,0.48364]
[1760235375542,0.51831196,3718.5,3718.4,0.48364]
[1760235376735,0.51831196,3718.5,3717.4,1.92390733]
[1760235376736,0.14761196,3718.5,3717.4,1.92390733]
[1760235376936,0.14761196,3718.5,3717.2,1.20947]
[1760235376937,0.3707,3718.4,3718.3,0.48364]
[1760235378839,0.14761196,3718.5,3718.3,0.48364]
[1760235379038,0.00201196,3718.5,3718.3,0.48364]
[1760235379238,0.00201196,3718.5,3718.3,5.48364]
[1760235379435,0.3707,3719.4,3718.9,0.48357]
[1760235380043,0.3707,3719.4,3719.3,0.48352]
[1760235380445,0.1441,3719.5,3719.3,0.48352]
[1760235380947,0.3707,3719.8,3719.7,0.48347]
[1760235381147,0.3707,3719.8,3719.7,0.4859013]
[1760235381345,0.00261581,3719.8,3719.7,0.4859013]
[1760235383644,0.1441,3720.5,3720.4,0.48338]
[1760235384342,0.5148,3720.5,3720.4,0.48338]
[1760235384648,0.51712641,3720.5,3720.4,0.48338]
[1760235385547,0.3707,3721.7,3721.6,0.48322]
[1760235385749,0.1441,3722.0,3719.7,1.92633863]
[1760235385943,0.1441,3721.5,3721.3,0.48325]
[1760235386242,0.62728,3722.0,3719.7,0.0024313]
[1760235386243,0.1441,3722.0,3721.9,0.48318]
[1760235386451,0.1441,3722.0,3719.9,2.4172]
[1760235386452,0.3707,3722.4,3722.1,0.48315]
[1760235386638,0.00317716,3722.4,3722.1,0.48315]
[1760235386841,0.3707,3722.3,3722.1,0.48315]
[1760235387150,0.00317716,3722.4,3722.1,0.48315]
[1760235387348,0.3707,3722.3,3721.9,0.48317]
[1760235387543,0.5148,3722.0,3721.9,0.48317]
[1760235388147,5.5148,3722.0,3721.9,0.48317]
[1760235388546,0.3707,3721.9,3720.4,1.20845]
[1760235388949,0.1441,3722.0,3719.0,14.21967733]
[1760235388950,0.1441,3722.0,3719.6,12.08689]
[1760235389347,0.1441,3722.0,3721.9,0.48318]
[1760235389553,0.37387716,3722.4,3722.3,0.48313]
[1760235390951,0.00317716,3722.4,3722.3,0.48313]
[1760235391254,0.022,3722.8,3722.7,0.48308]
[1760235391953,0.5148,3724.0,3723.9,0.48292]
[1760235392150,0.51738554,3724.0,3723.9,0.48530597]
[1760235392747,0.14668554,3724.0,3723.9,0.48530597]
[1760235393156,0.51738554,3724.0,3723.9,0.00238597]
[1760235393955,5.51738554,3724.0,3723.9,1e-08]
[1760235394157,0.3707,3723.4,3723.3,0.48299]
[1760235394454,0.3707,3723.4,3719.9,4.31769145]
[1760235394455,0.3707,3722.4,3721.2,1.20818]
[1760235394764,0.1441,3722.5,3721.8,0.4832]
[1760235394765,0.3388,3721.9,3721.8,0.4832]
[1760235395254,0.1441,3722.5,3722.4,0.48312]
[1760235395447,0.1441,3723.0,3722.8,0.48307]
[1760235395759,0.1441,3723.0,3722.7,0.48307]
[1760235395954,0.4829,3723.0,3722.9,0.48305]
[1760235396253,0.4829,3723.0,3721.8,0.00324436]
[1760235396254,0.3388,3722.4,3721.8,0.00324436]
[1760235396759,0.3388,3721.9,3721.8,0.48643436]
[1760235397355,5.3388,3721.9,3721.8,0.00324436]
[1760235397552,0.3388,3721.9,3721.8,0.00324436]
[1760235398059,0.3388,3722.4,3722.3,0.48313]
[1760235399056,0.3388,3722.9,3722.8,0.48307]
[1760235400253,0.1441,3723.0,3722.8,0.48307]
[1760235400453,0.3388,3722.9,3722.8,0.48307]
[1760235400955,0.48307,3722.8,3721.8,0.00324436]
[1760235401147,0.1399,3722.5,3722.3,0.48312]
[1760235401352,0.1399,3722.0,3721.8,0.00324436]
[1760235401552,0.3388,3721.9,3721.8,0.48644436]
[1760235401858,0.1399,3722.0,3721.8,0.48644436]
[1760235402057,0.3388,3722.9,3721.8,5.00324436]
[1760235402265,0.3388,3722.9,3722.8,0.48307]
[1760235403760,0.4829,3723.0,3722.8,0.48307]
[1760235403959,0.4829,3723.5,3723.4,0.48299]
[1760235404465,0.14248554,3724.0,3721.8,2.41919436]
[1760235404466,0.3388,3723.9,3723.8,0.48293]
[1760235405163,0.14248554,3724.0,3723.8,0.48293]
[1760235405360,0.47728554,3724.0,3723.8,0.48293]
[1760235405560,0.14248554,3724.0,3723.8,0.48293]
[1760235405868,0.47728554,3724.0,3723.8,0.48293]
[1760235406162,0.14248554,3724.0,3723.8,0.48293]
[1760235406467,0.3348,3723.9,3723.8,0.48293]
[1760235406967,5.0,3723.9,3721.9,2.4159]
[1760235407164,0.3348,3723.9,3723.7,0.48294]
[1760235407363,0.14248554,3724.0,3723.7,0.48294]
[1760235407565,0.14248554,3724.0,3723.0,0.48303]
[1760235407566,0.48297,3723.6,3723.0,0.48303]
[1760235407864,0.4682,3723.0,3722.9,0.48304]
[1760235409064,0.3348,3723.4,3723.2,0.483]
[1760235409265,0.4682,3723.5,3723.4,0.48299]
[1760235409466,0.3348,3723.4,3723.2,0.48301]
[1760235409671,0.3348,3723.2,3721.9,1.20794]
[1760235409867,0.3348,3723.4,3723.1,0.48302]
[1760235410171,0.3348,3723.4,3723.3,0.483]
[1760235411771,0.3348,3723.8,3723.7,0.48295]
[1760235412165,0.3348,3723.8,3721.9,2.41591]
[1760235412166,0.14248554,3724.0,3723.9,0.48292]
[1760235412373,0.47728554,3724.0,3723.9,0.48292]
[1760235412773,1.1401006,3724.0,3723.9,0.48292]
[1760235413171,0.8053006,3724.0,3722.4,1.20778]
[1760235413378,0.3348,3723.7,3723.5,0.48297]
[1760235413581,0.3348,3723.9,3723.6,0.48295]
[1760235413877,0.3348,3723.7,3723.6,0.48295]
[1760235414174,0.99819175,3723.7,3723.6,0.48295]
[1760235415466,0.1334,3723.5,3722.0,2.41586]
[1760235415669,0.4682,3723.5,3723.4,0.48299]
[1760235415866,0.3348,3723.9,3723.8,0.48294]
[1760235416070,0.99267331,3723.9,3723.8,0.48294]
[1760235420576,0.3348,3723.8,3721.7,1.92390733]
[1760235420770,0.3348,3723.6,3723.5,0.48296]
[1760235420978,0.65787331,3723.6,3723.5,0.48296]
[1760235421172,0.00258554,3724.0,3723.8,0.48294]
[1760235421577,0.95845728,3724.9,3724.8,0.48281]
[1760235421782,0.65448768,3724.9,3724.8,0.48281]
[1760235421980,0.3348,3725.1,3724.8,0.48281]
[1760235422176,0.1334,3725.5,3725.4,0.48273]
[1760235422376,0.4682,3725.5,3725.4,0.48273]
[1760235422579,1.12448347,3725.5,3725.4,0.4848139]
[1760235422781,0.47054361,3725.5,3725.4,0.4848139]
[1760235423282,5.47054361,3725.5,3725.4,0.0020839]
[1760235423584,6.12020421,3725.5,3725.4,0.0020839]
[1760235424478,1.12020421,3725.5,3725.4,0.0020839]
[1760235424684,0.00234361,3725.5,3725.4,0.0020839]
[1760235424885,0.4839,3726.5,3726.4,0.4826]
[1760235425790,0.48617087,3726.5,3726.4,0.4826]
[1760235428778,5.48617087,3726.5,3725.4,0.0020839]
[1760235428978,0.13567087,3726.5,3726.2,0.48262]
[1760235429185,0.3505,3726.4,3726.2,0.48262]
[1760235429385,0.3505,3726.4,3725.4,0.0020839]
[1760235429581,0.83311,3726.4,3725.4,0.0020839]
[1760235429788,0.4884,3725.5,3725.4,0.4848139]
[1760235430393,0.4884,3726.0,3725.9,0.48266]
[1760235430681,0.13567087,3726.5,3725.4,0.0020839]
[1760235430682,0.00227087,3726.5,3726.4,0.4826]
[1760235430882,0.00227087,3726.5,3725.4,0.0020839]
[1760235430883,0.4884,3727.5,3727.3,0.48248]
[1760235431086,0.022,3727.8,3727.7,0.48243]
[1760235431481,0.3725,3727.8,3727.7,0.48243]
[1760235431884,0.37472753,3727.8,3727.7,0.48243]
[1760235433080,0.02422753,3727.8,3727.5,0.48246]
[1760235433284,0.02422753,3727.8,3727.5,0.48245]
[1760235433285,0.3505,3727.7,3727.5,0.48245]
[1760235433485,0.3505,3727.7,3727.6,0.48244]
[1760235434286,0.02422753,3727.8,3727.6,0.48244]
[1760235437985,0.3505,3728.7,3728.6,0.48231]
[1760235438186,0.1379,3729.0,3728.9,0.48228]
[1760235438392,0.4884,3729.0,3728.9,0.48228]
[1760235438897,0.49035679,3729.0,3728.9,0.485066]
[1760235440196,5.49035679,3729.0,3728.9,0.002786]
[1760235440888,5.49035679,3729.0,3726.7,2.4128]
[1760235440889,0.1379,3728.0,3727.9,0.4824]
[1760235441096,0.4884,3728.0,3727.9,0.4824]
[1760235441289,0.1379,3728.0,3725.1,2.18236641]
[1760235441495,0.3505,3727.9,3725.1,2.18236641]
[1760235441896,0.3505,3727.9,3727.8,0.48241]
[1760235442488,0.3505,3728.4,3728.3,0.48235]
[1760235442796,0.3505,3728.4,3728.3,0.48565726]
[1760235443195,0.1379,3728.5,3728.3,0.48565726]
[1760235443390,0.4884,3728.5,3728.3,0.48565726]
[1760235443588,0.1379,3728.5,3728.3,0.48565726]
[1760235443789,0.3505,3728.8,3728.7,0.4823]
[1760235445896,0.3505,3728.8,3728.3,0.00330726]
[1760235445897,5.0,3728.8,3728.5,0.48232]
[1760235446094,0.13985679,3729.0,3728.5,0.48232]
[1760235446393,0.13985679,3729.0,3728.4,0.48234]
[1760235446394,0.4884,3728.5,3728.4,0.48234]
[1760235446797,0.4884,3728.5,3728.3,0.00330726]
[1760235446995,0.3505,3728.4,3728.3,0.00330726]
[1760235448399,0.1379,3728.5,3728.4,0.48234]
[1760235449196,0.4884,3728.5,3728.4,0.48234]
[1760235450893,0.9567,3728.9,3728.8,0.48229]